bitfinex/quotes_BTCUSD_20240803
["timestamp","ask_amount","ask_price","bid_price","bid_amount"]
[1722646771763,0.15745924,61099.0,61098.0,0.0775329]
[1722646771960,0.01,61121.0,61098.0,0.12545534]
[1722646772162,0.0802,61125.0,61098.0,0.12545534]
[1722646772163,0.15615194,61127.0,61099.0,0.17988351]
[1722646772395,0.15615194,61127.0,61100.0,0.09815333]
[1722646772396,0.0774,61127.0,61100.0,0.09815333]
[1722646772730,0.0774,61127.0,61099.0,0.1]
[1722646772731,0.0774,61127.0,61101.0,0.07985323]
[1722646772852,0.0774,61127.0,61102.0,0.2497423]
[1722646773068,0.01,61128.0,61103.0,0.34973619]
[1722646773279,0.01,61128.0,61104.0,0.07985323]
[1722646773476,0.01,61128.0,61103.0,0.1]
[1722646773477,0.01,61128.0,61105.0,0.07985323]
[1722646773692,0.0602,61131.0,61106.0,0.07985323]
[1722646773889,0.0774,61134.0,61107.0,0.27271889]
[1722646774112,0.0774,61134.0,61108.0,0.39856639]
[1722646774364,0.0774,61134.0,61109.0,0.26142296]
[1722646774541,0.53271164,61138.0,61110.0,0.1]
[1722646774693,0.53271164,61138.0,61111.0,0.06365533]
[1722646774912,0.53271164,61138.0,61112.0,0.2872595]
[1722646775092,0.53271164,61138.0,61113.0,0.361412]
[1722646775303,0.47251164,61138.0,61115.0,0.1]
[1722646775509,0.47251164,61138.0,61118.0,0.04881046]
[1722646775718,0.47251164,61138.0,61118.0,0.09155517]
[1722646775904,0.47251164,61138.0,61118.0,0.238412]
[1722646776109,0.02014201,61148.0,61118.0,0.16855517]
[1722646776305,0.01,61144.0,61118.0,0.19155517]
[1722646776523,0.01,61141.0,61118.0,0.19155517]
[1722646776730,0.01,61141.0,61118.0,0.16855517]
[1722646776933,0.07875194,61135.0,61118.0,0.14065533]
[1722646777107,0.07875194,61135.0,61118.0,0.04065533]
[1722646777307,0.0702,61132.0,61118.0,0.04065533]
[1722646777526,0.16760125,61119.0,61114.0,0.1]
[1722646777742,0.00157439,61118.0,61115.0,0.03945385]
[1722646777942,0.16473223,61119.0,61115.0,0.03945385]
[1722646778153,0.010153,61129.0,61116.0,0.03945385]
[1722646778357,0.16761224,61129.0,61117.0,0.03945385]
[1722646778723,0.16761224,61129.0,61118.0,0.03945385]
[1722646778724,0.010153,61129.0,61118.0,0.03945385]
[1722646778932,0.010153,61129.0,61118.0,0.06724177]
[1722646779100,0.010153,61129.0,61119.0,0.06724177]
[1722646779305,0.010153,61129.0,61120.0,0.09024177]
[1722646779507,0.010153,61129.0,61121.0,0.06724177]
[1722646779713,0.010153,61129.0,61122.0,0.06246111]
[1722646779885,0.010153,61129.0,61123.0,0.06718112]
[1722646780146,0.010153,61129.0,61124.0,0.06718199]
[1722646780290,0.010153,61129.0,61125.0,0.06718045]
[1722646780488,0.010153,61129.0,61126.0,0.06246111]
[1722646780688,0.010153,61129.0,61127.0,0.03946111]
[1722646780929,0.010153,61129.0,61127.0,0.13946111]
[1722646781138,0.010153,61129.0,61128.0,0.03946111]
[1722646781298,0.010153,61129.0,61128.0,0.03878274]
[1722646781799,0.010153,61129.0,61128.0,0.73878274]
[1722646782038,0.010153,61129.0,61128.0,0.86178274]
[1722646782243,0.010153,61129.0,61128.0,0.83878274]
[1722646782455,0.010153,61129.0,61128.0,0.83857125]
[1722646782665,0.010153,61129.0,61128.0,0.8]
[1722646783420,0.010153,61129.0,61128.0,0.83859647]
[1722646783627,0.08754201,61148.0,61128.0,0.83859647]
[1722646783628,0.00076706,61136.0,61128.0,0.86159647]
[1722646783825,0.00076706,61136.0,61129.0,0.16159647]
[1722646784030,0.00076706,61136.0,61130.0,0.03859647]
[1722646784240,0.00076706,61136.0,61129.0,0.823]
[1722646784826,0.00076706,61136.0,61130.0,0.03817561]
[1722646785043,0.00076706,61136.0,61131.0,0.023]
[1722646785249,0.00076706,61136.0,61132.0,0.13817561]
[1722646785465,0.00076706,61136.0,61133.0,0.16117561]
[1722646785689,0.00076706,61136.0,61134.0,0.03848278]
[1722646785889,0.00076706,61136.0,61135.0,0.023]
[1722646786065,0.00076706,61136.0,61135.0,0.06148278]
[1722646786242,0.00076706,61136.0,61135.0,0.16148278]
[1722646786443,0.00076706,61136.0,61135.0,0.123]
[1722646786645,0.00076706,61136.0,61135.0,0.16191392]
[1722646786952,0.00076706,61136.0,61135.0,0.91016806]
[1722646787156,0.00076706,61136.0,61135.0,0.86555154]
[1722646787351,0.00076706,61136.0,61135.0,0.823]
[1722646788040,0.00076706,61136.0,61135.0,0.7]
[1722646788269,0.01014201,61148.0,61135.0,0.7]
[1722646788446,0.01014201,61148.0,61136.0,0.023]
[1722646788662,0.01014201,61148.0,61136.0,0.88045924]
[1722646788879,0.01014201,61148.0,61136.0,0.723]
[1722646789296,0.01014201,61148.0,61137.0,0.1]
[1722646789447,0.01014201,61148.0,61138.0,0.023]
[1722646789648,0.55126358,61147.0,61138.0,0.7]
[1722646789882,0.01014201,61148.0,61139.0,0.1]
[1722646790757,0.01014201,61148.0,61142.0,0.1]
[1722646790959,0.01014201,61148.0,61142.0,0.1161939]
[1722646791162,0.01014201,61148.0,61143.0,0.13982629]
[1722646791391,0.01014201,61148.0,61143.0,0.1]
[1722646791590,0.01014201,61148.0,61143.0,0.8]
[1722646792034,0.01014201,61148.0,61144.0,0.023]
[1722646792385,0.01014201,61148.0,61145.0,0.04461652]
[1722646792670,0.01014201,61162.0,61149.0,0.1]
[1722646792850,0.16760125,61162.0,61149.0,0.1161939]
[1722646793048,0.16760125,61162.0,61150.0,0.1]
[1722646793494,0.4843271,61188.0,61150.0,0.1]
[1722646793495,0.01,61202.0,61175.0,0.1]
[1722646793695,0.55126358,61206.0,61175.0,0.8161939]
[1722646793696,0.47251164,61187.0,61175.0,0.8161939]
[1722646793899,0.57126358,61206.0,61183.0,0.1]
[1722646794111,0.57126358,61206.0,61184.0,0.13305078]
[1722646794112,0.47251164,61206.0,61184.0,0.13305078]
[1722646794249,0.01,61202.0,61185.0,0.1]
[1722646794634,0.0089235,61199.0,61186.0,0.09724725]
[1722646794804,0.15745924,61198.0,61186.0,0.09724725]
[1722646795037,0.16638274,61199.0,61187.0,0.04898906]
[1722646795320,0.09,61189.0,61188.0,0.0451621]
[1722646795518,0.1729,61189.0,61188.0,0.0451621]
[1722646795745,0.1729,61186.0,61185.0,0.6334]
[1722646796155,0.03,61184.0,61183.0,0.0161939]
[1722646796381,0.18745924,61184.0,61183.0,0.0161939]
[1722646797216,0.27035924,61184.0,61183.0,0.0161939]
[1722646797416,0.03,61175.0,61152.0,0.47251164]
[1722646797589,0.18745924,61175.0,61152.0,0.47251164]
[1722646798366,0.18745924,61175.0,61158.0,0.0448343]
[1722646798570,0.18745924,61175.0,61151.0,0.01141398]
[1722646798966,0.18745924,61175.0,61142.0,0.1606]
[1722646798967,0.27035924,61175.0,61142.0,0.1606]
[1722646799223,0.27035924,61175.0,61153.0,0.47251164]
[1722646799224,0.26035924,61175.0,61153.0,0.47251164]
[1722646799433,0.27035924,61175.0,61145.0,0.01169333]
[1722646799869,0.01,61149.0,61135.0,0.47251164]
[1722646800078,0.01,61147.0,61135.0,0.47251164]
[1722646800296,0.0829,61159.0,61144.0,0.1]
[1722646800592,0.01,61165.0,61145.0,0.0606]
[1722646800802,0.15745924,61164.0,61145.0,0.0606]
[1722646801004,0.08,61173.0,61145.0,0.0606]
[1722646801005,0.01,61173.0,61151.0,0.1]
[1722646801203,0.01,61164.0,61151.0,0.1]
[1722646801516,0.07875194,61156.0,61146.0,0.3269]
[1722646801743,0.15903363,61155.0,61147.0,0.14196121]
[1722646801970,0.15745924,61155.0,61147.0,0.1]
[1722646802182,0.16745924,61154.0,61145.0,0.0606]
[1722646802385,0.07875194,61151.0,61137.0,0.1]
[1722646802580,0.15903363,61150.0,61137.0,0.1]
[1722646802788,0.15745924,61150.0,61137.0,0.1]
[1722646803380,0.15745924,61150.0,61134.0,0.3269]
[1722646803381,0.01,61145.0,61134.0,0.3269]
[1722646803599,0.07875194,61158.0,61139.0,0.1]
[1722646803600,0.00157439,61144.0,61139.0,0.1]
[1722646803777,0.002,61182.0,61147.0,0.1]
[1722646803778,0.01,61161.0,61147.0,0.1]
[1722646803982,0.62997088,61160.0,61148.0,0.0606]
[1722646804182,0.0829,61165.0,61148.0,0.0606]
[1722646804385,0.01,61169.0,61149.0,0.20774421]
[1722646804591,0.01,61169.0,61148.0,0.0606]
[1722646804592,0.47251164,61164.0,61154.0,0.1]
[1722646804793,0.15745924,61168.0,61155.0,0.20770947]
[1722646804990,0.02,61170.0,61156.0,0.30770947]
[1722646805248,0.02,61170.0,61157.0,0.20770947]
[1722646805249,0.01,61166.0,61157.0,0.20770947]
[1722646805396,0.01,61168.0,61158.0,0.1]
[1722646805596,0.15745924,61167.0,61156.0,0.1]
[1722646805799,0.01,61172.0,61156.0,0.1]
[1722646806007,0.15745924,61171.0,61157.0,0.25605504]
[1722646806219,0.15745924,61171.0,61158.0,0.1]
[1722646806220,0.07875194,61163.0,61158.0,0.1]
[1722646806428,0.01,61164.0,61158.0,0.1]
[1722646806632,0.01,61168.0,61158.0,0.1]
[1722646806834,0.16745924,61168.0,61158.0,0.1]
[1722646807031,0.07875194,61167.0,61158.0,0.1]
[1722646807269,0.07875194,61160.0,61149.0,0.1]
[1722646807501,0.01,61165.0,61150.0,0.169748]
[1722646807697,0.01,61171.0,61155.0,0.1]
[1722646807911,0.08075194,61198.0,61163.0,0.1]
[1722646807912,0.01,61175.0,61163.0,0.1]
[1722646808113,0.00157439,61174.0,61163.0,0.1]
[1722646808317,0.16745924,61175.0,61163.0,0.1]
[1722646808527,0.16745924,61175.0,61164.0,0.16972248]
[1722646808745,0.16745924,61175.0,61165.0,0.1]
[1722646808958,0.07875194,61198.0,61165.0,0.1]
[1722646808959,0.16405194,61184.0,61166.0,0.0605]
[1722646809177,0.01,61178.0,61166.0,0.0605]
[1722646809381,0.00157439,61177.0,61167.0,0.16971041]
[1722646809580,0.16745924,61178.0,61168.0,0.1]
[1722646809782,0.002,61203.0,61168.0,0.1]
[1722646809783,0.0753,61191.0,61170.0,0.1]
[1722646809993,0.47251164,61190.0,61178.0,0.0649]
[1722646810210,0.01,61195.0,61179.0,0.33561542]
[1722646810415,0.15745924,61194.0,61181.0,0.0605]
[1722646810676,0.01,61193.0,61182.0,0.33560898]
[1722646810809,0.01,61195.0,61183.0,0.39926665]
[1722646811019,0.0942235,61199.0,61184.0,0.43560656]
[1722646811020,0.0189235,61199.0,61184.0,0.43560656]
[1722646811230,0.0189235,61199.0,61185.0,0.43560656]
[1722646811231,0.15745924,61198.0,61185.0,0.43560656]
[1722646811469,0.0089235,61199.0,61186.0,0.27200131]
[1722646811647,0.0089235,61199.0,61191.0,0.1]
[1722646812056,0.0089235,61199.0,61192.0,0.0825815]
[1722646812247,0.0089235,61199.0,61192.0,0.1825815]
[1722646812445,0.0089235,61199.0,61192.0,0.1392738]
[1722646812848,0.0089235,61199.0,61193.0,0.0392738]
[1722646813080,0.0089235,61199.0,61193.0,0.1]
[1722646813289,0.15955194,61213.0,61193.0,0.1]
[1722646813290,0.0039235,61206.0,61193.0,0.1]
[1722646813532,0.15955194,61213.0,61198.0,0.1]
[1722646813533,0.01406551,61210.0,61198.0,0.1]
[1722646813725,0.01406551,61210.0,61207.0,0.1]
[1722646813726,0.01014201,61210.0,61207.0,0.1]
[1722646813960,0.020231,61221.0,61208.0,0.2082815]
[1722646813961,0.010231,61221.0,61208.0,0.2082815]
[1722646814140,0.010231,61221.0,61209.0,0.29258966]
[1722646814340,0.010231,61221.0,61210.0,0.085499]
[1722646814653,0.010231,61221.0,61211.0,0.023]
[1722646814874,0.010231,61221.0,61212.0,0.085499]
[1722646815076,0.07875194,61215.0,61212.0,0.185499]
[1722646815304,0.0140545,61216.0,61212.0,0.185499]
[1722646815305,0.010131,61216.0,61212.0,0.185499]
[1722646815512,0.010131,61216.0,61213.0,0.108499]
[1722646815713,0.010131,61216.0,61214.0,0.1]
[1722646815922,0.08267544,61215.0,61214.0,0.185499]
[1722646816127,0.08267544,61215.0,61214.0,0.1]
[1722646816327,0.09267544,61215.0,61214.0,0.1]
[1722646816536,0.23825924,61215.0,61214.0,0.14206196]
[1722646816743,0.23825924,61215.0,61205.0,0.1]
[1722646816744,0.0039235,61214.0,61205.0,0.1]
[1722646816949,0.09424983,61214.0,61205.0,0.1]
[1722646817151,0.0139235,61208.0,61205.0,0.1]
[1722646817371,0.00549789,61207.0,61198.0,0.1]
[1722646817578,0.0039235,61198.0,61191.0,0.04219938]
[1722646817809,0.00157439,61197.0,61190.0,0.1]
[1722646818020,0.0039235,61202.0,61190.0,0.1]
[1722646818235,0.0808,61205.0,61190.0,0.1]
[1722646818236,0.00157439,61201.0,61190.0,0.1]
[1722646818442,0.00157439,61204.0,61191.0,0.16962552]
[1722646818660,0.0039235,61205.0,61191.0,0.16962552]
[1722646818859,0.0039235,61205.0,61190.0,0.1]
[1722646819082,0.00157439,61204.0,61191.0,0.023]
[1722646819287,0.00157439,61204.0,61197.0,0.1]
[1722646819463,0.010131,61231.0,61206.0,0.1]
[1722646819464,0.01,61220.0,61206.0,0.1]
[1722646819598,0.47251164,61212.0,61206.0,0.1]
[1722646819802,0.0039235,61217.0,61206.0,0.1]
[1722646820480,0.0241545,61221.0,61206.0,0.1]
[1722646820682,0.010231,61221.0,61213.0,0.1]
[1722646820886,0.00135477,61221.0,61215.0,0.1257]
[1722646821022,0.00135477,61221.0,61220.0,0.1]
[1722646821240,0.00135477,61221.0,61220.0,0.222508]
[1722646821436,0.00135477,61221.0,61220.0,0.43486118]
[1722646821671,0.00135477,61221.0,61220.0,0.43486087]
[1722646821882,0.010131,61231.0,61220.0,0.60245111]
[1722646822103,0.010131,61231.0,61221.0,0.18427765]
[1722646822104,0.0039235,61230.0,61221.0,0.18427765]
[1722646822313,0.0039235,61230.0,61221.0,0.14221569]
[1722646823115,0.0039235,61229.0,61221.0,0.14221569]
[1722646823766,0.010131,61239.0,61230.0,0.1]
[1722646823962,0.0039235,61238.0,61230.0,0.1]
[1722646824206,0.010131,61239.0,61231.0,0.023]
[1722646824408,0.010131,61239.0,61231.0,0.17194108]
[1722646825059,0.08267544,61238.0,61231.0,0.14894108]
[1722646825270,0.08267544,61238.0,61232.0,0.023]
[1722646825470,0.0039235,61241.0,61232.0,0.023]
[1722646825674,0.010131,61246.0,61232.0,0.023]
[1722646825675,0.0039235,61243.0,61233.0,0.04894108]
[1722646825845,0.0039235,61243.0,61234.0,0.023]
[1722646826228,0.0139235,61240.0,61235.0,0.04912774]
[1722646826442,0.0039235,61240.0,61235.0,0.04912774]
[1722646826741,0.0139235,61240.0,61235.0,0.04912774]
[1722646826947,0.010131,61246.0,61236.0,0.023]
[1722646826948,0.0039235,61242.0,61236.0,0.023]
[1722646827106,0.0039235,61242.0,61237.0,0.04912774]
[1722646827310,0.0039235,61241.0,61237.0,0.04912774]
[1722646827613,0.0039235,61243.0,61238.0,0.023]
[1722646827801,0.0039235,61243.0,61239.0,0.04912774]
[1722646828005,0.0039235,61243.0,61236.0,0.023]
[1722646828201,0.0039235,61241.0,61233.0,0.023]
[1722646828433,0.0039235,61242.0,61232.0,0.023]
[1722646828639,0.0139235,61242.0,61232.0,0.023]
[1722646828843,0.010131,61246.0,61232.0,0.023]
[1722646828844,0.09267544,61241.0,61232.0,0.023]
[1722646829041,0.09267544,61241.0,61231.0,0.1]
[1722646829042,0.0039235,61234.0,61231.0,0.1]
[1722646829285,0.00157439,61233.0,61231.0,0.1]
[1722646829488,0.010131,61246.0,61231.0,0.1]
[1722646829489,0.09267544,61232.0,61231.0,0.1]
[1722646829636,0.07875194,61243.0,61225.0,0.1]
[1722646829637,0.0039235,61230.0,61225.0,0.1]
[1722646829841,0.00157439,61229.0,61225.0,0.1]
[1722646830061,0.0039235,61229.0,61225.0,0.1]
[1722646830259,0.0139235,61225.0,61223.0,0.1]
[1722646830506,0.0039235,61225.0,61223.0,0.1]
[1722646830735,0.0039235,61225.0,61220.0,0.010131]
[1722646830906,0.0039235,61223.0,61220.0,0.010131]
[1722646831127,0.00157439,61222.0,61220.0,0.010131]
[1722646831329,0.0039235,61221.0,61220.0,0.010131]
[1722646831533,0.17138274,61221.0,61220.0,0.010131]
[1722646832284,0.0665235,61221.0,61220.0,0.010131]
[1722646832564,0.0792,61231.0,61220.0,0.010131]
[1722646832565,0.0039235,61223.0,61220.0,0.010131]
[1722646833419,0.08267544,61221.0,61220.0,0.010131]
[1722646833629,0.0039235,61221.0,61220.0,0.010131]
[1722646834032,0.0039235,61223.0,61220.0,0.010131]
[1722646834233,0.0039235,61223.0,61220.0,0.033131]
[1722646834648,0.47251164,61248.0,61220.0,0.033131]
[1722646834649,0.0039235,61227.0,61221.0,0.0865]
[1722646834865,0.00157439,61229.0,61221.0,0.0865]
[1722646834866,0.07875194,61222.0,61221.0,0.04229862]
[1722646835076,0.07875194,61222.0,61220.0,0.010131]
[1722646835279,0.00157439,61221.0,61220.0,0.010131]
[1722646835450,0.07875194,61222.0,61220.0,0.033131]
[1722646835683,0.07875194,61221.0,61220.0,0.010131]
[1722646836086,0.0139235,61222.0,61220.0,0.010131]
[1722646836299,0.09267544,61221.0,61220.0,0.010131]
[1722646836507,0.24108274,61221.0,61220.0,0.010131]
[1722646836736,0.0039235,61221.0,61220.0,0.010131]
[1722646836940,0.0797,61228.0,61220.0,0.010131]
[1722646836941,0.0039235,61223.0,61220.0,0.010131]
[1722646837150,0.0039235,61225.0,61220.0,0.010131]
[1722646837353,0.01,61231.0,61220.0,0.010131]
[1722646837354,0.0039235,61223.0,61220.0,0.010131]
[1722646838176,0.0039235,61228.0,61223.0,0.1]
[1722646838383,0.0039235,61228.0,61224.0,0.023]
[1722646838516,0.0626,61243.0,61225.0,0.16955062]
[1722646838517,0.0039235,61232.0,61225.0,0.16955062]
[1722646838714,0.0039235,61232.0,61226.0,0.123]
[1722646838924,0.1423,61243.0,61226.0,0.123]
[1722646838925,0.0039235,61242.0,61237.0,0.1]
[1722646839122,0.0039235,61238.0,61237.0,0.1]
[1722646839423,0.0139235,61238.0,61237.0,0.26952007]
[1722646839622,0.0139235,61238.0,61237.0,0.1]
[1722646839623,0.0039235,61238.0,61237.0,0.1]
[1722646839823,0.0039235,61239.0,61237.0,0.2695231]
[1722646840181,0.14135194,61250.0,61238.0,0.1]
[1722646840396,0.07875194,61243.0,61238.0,0.1]
[1722646840583,0.15903363,61242.0,61238.0,0.1]
[1722646840981,0.15745924,61242.0,61238.0,0.1]
[1722646841184,0.14135194,61250.0,61226.0,0.023]
[1722646841185,0.00157439,61241.0,61236.0,0.1]
[1722646841436,0.07875194,61241.0,61231.0,0.1]
[1722646841635,0.07875194,61241.0,61232.0,0.24143826]
[1722646841845,0.07875194,61240.0,61233.0,0.36443826]
[1722646841995,0.07875194,61240.0,61233.0,0.1972976]
[1722646842197,0.07875194,61240.0,61234.0,0.26952328]
[1722646842403,0.14135194,61250.0,61234.0,0.1]
[1722646842735,0.07875194,61243.0,61235.0,0.16952967]
[1722646842955,0.07875194,61243.0,61234.0,0.1]
[1722646842956,0.00157439,61242.0,61236.0,0.1]
[1722646843147,0.0626,61250.0,61237.0,0.16952364]
[1722646843352,0.15745924,61249.0,61238.0,0.26952364]
[1722646843595,0.15745924,61249.0,61239.0,0.16952364]
[1722646843802,0.15745924,61249.0,61239.0,0.023]
[1722646843935,0.15745924,61249.0,61236.0,0.123]
[1722646844131,0.15745924,61249.0,61237.0,0.3416516]
[1722646844361,0.07875194,61248.0,61238.0,0.2646516]
[1722646844564,0.15745924,61249.0,61238.0,0.2646516]
[1722646844565,0.15745924,61249.0,61239.0,0.29724584]
[1722646844769,0.15745924,61249.0,61240.0,0.19724584]
[1722646844989,0.07875194,61248.0,61241.0,0.2695178]
[1722646845225,0.07875194,61248.0,61242.0,0.1]
[1722646845351,0.07875194,61248.0,61239.0,0.1]
[1722646845352,0.00157439,61247.0,61239.0,0.1]
[1722646845588,0.00157439,61247.0,61240.0,0.16951866]
[1722646845786,0.07875194,61248.0,61241.0,0.1]
[1722646846190,0.00157439,61247.0,61241.0,0.1]
[1722646846396,0.0626,61250.0,61241.0,0.1]
[1722646846397,0.0626,61250.0,61242.0,0.19251109]
[1722646846592,0.0626,61250.0,61243.0,0.26950942]
[1722646846795,0.07875194,61249.0,61244.0,0.023]
[1722646847844,0.15745924,61248.0,61236.0,0.1]
[1722646848048,0.15745924,61248.0,61235.0,0.1]
[1722646848049,0.00157439,61247.0,61237.0,0.24022792]
[1722646848247,0.15745924,61246.0,61238.0,0.34022792]
[1722646848419,0.15745924,61246.0,61235.0,0.1]
[1722646848420,0.07875194,61242.0,61235.0,0.1]
[1722646848600,0.00157439,61241.0,61236.0,0.24035103]
[1722646848799,0.00157439,61241.0,61235.0,0.1]
[1722646848800,0.00157439,61245.0,61237.0,0.24035103]
[1722646849044,0.00091301,61247.0,61238.0,0.33798057]
[1722646849254,0.00091301,61247.0,61235.0,0.1]
[1722646849255,0.00091301,61247.0,61242.0,0.1]
[1722646849507,0.0664,61264.0,61243.0,0.33797984]
[1722646849641,0.15745924,61259.0,61244.0,0.43797984]
[1722646849841,0.15745924,61259.0,61245.0,0.36097984]
[1722646850043,0.15745924,61259.0,61246.0,0.43797984]
[1722646850244,0.0664,61264.0,61247.0,0.36097984]
[1722646850498,0.17138274,61260.0,61248.0,0.43797984]
[1722646850712,0.17138274,61260.0,61249.0,0.46097984]
[1722646851041,0.17138274,61260.0,61250.0,0.33797984]
[1722646851247,0.23621118,61259.0,61251.0,0.33797984]
[1722646851455,0.23621118,61259.0,61250.0,0.13786695]
[1722646851456,0.23621118,61259.0,61252.0,0.43797984]
[1722646851668,0.23621118,61259.0,61252.0,0.24035103]
[1722646851908,0.23621118,61259.0,61253.0,0.26952466]
[1722646851909,0.00157439,61258.0,61253.0,0.26952466]
[1722646852117,0.15745924,61257.0,61253.0,0.26949242]
[1722646852333,0.00157439,61256.0,61254.0,0.16948823]
[1722646852541,0.07875194,61259.0,61253.0,0.1]
[1722646852542,0.15745924,61255.0,61253.0,0.1]
[1722646852763,0.00157439,61254.0,61253.0,0.1]
[1722646852981,0.15745924,61254.0,61253.0,0.41565267]
[1722646853208,0.15245924,61254.0,61253.0,0.31786423]
[1722646853401,0.0139235,61260.0,61253.0,0.31786423]
[1722646853615,0.07875194,61256.0,61253.0,0.1]
[1722646853816,0.15903363,61255.0,61243.0,0.1]
[1722646853948,0.15903363,61255.0,61244.0,0.36610548]
[1722646854146,0.15745924,61255.0,61245.0,0.44310548]
[1722646854371,0.15745924,61255.0,61246.0,0.36610548]
[1722646854575,0.15745924,61255.0,61247.0,0.41530043]
[1722646854576,0.07875194,61249.0,61247.0,0.41530043]
[1722646854774,0.00157439,61254.0,61248.0,0.14580608]
[1722646854979,0.15745924,61253.0,61249.0,0.1]
[1722646855133,0.15745924,61253.0,61247.0,0.1]
[1722646855134,0.00157439,61252.0,61247.0,0.1]
[1722646855344,0.07875194,61249.0,61242.0,0.11134615]
[1722646855542,0.15745924,61248.0,61243.0,0.31547958]
[1722646855830,0.15745924,61248.0,61242.0,0.11134615]
[1722646855831,0.00157439,61247.0,61246.0,0.7]
[1722646856037,0.15745924,61247.0,61246.0,1.01548022]
[1722646856350,0.15745924,61247.0,61246.0,0.918125]
[1722646856559,0.30205924,61247.0,61246.0,1.01583612]
[1722646856745,0.30205924,61247.0,61246.0,0.7]
[1722646857389,0.30205924,61247.0,61231.0,0.01155712]
[1722646857390,0.002,61245.0,61231.0,0.01155712]
[1722646857590,0.30205924,61247.0,61228.0,0.07287607]
[1722646857591,0.07875194,61237.0,61233.0,0.7]
[1722646857808,0.08032633,61244.0,61233.0,0.7]
[1722646857809,0.15903363,61236.0,61233.0,0.7]
[1722646857996,0.07875194,61235.0,61233.0,0.7]
[1722646858200,0.30363363,61234.0,61233.0,0.7]
[1722646858408,0.30205924,61234.0,61233.0,0.7]
[1722646859075,0.30205924,61234.0,61229.0,0.01114681]
[1722646859328,0.00157439,61233.0,61225.0,0.04858405]
[1722646859533,0.00157439,61233.0,61227.0,0.7]
[1722646859534,0.15745924,61232.0,61227.0,0.7]
[1722646859703,0.15745924,61232.0,61228.0,0.04872844]
[1722646860105,0.15745924,61232.0,61227.0,0.74858405]
[1722646860438,0.15745924,61232.0,61228.0,0.0487286]
[1722646860640,0.15745924,61232.0,61229.0,0.7]
[1722646860862,0.15745924,61232.0,61230.0,0.1]
[1722646861650,0.0651,61242.0,61230.0,0.1]
[1722646861821,0.07875194,61240.0,61233.0,0.04874051]
[1722646862006,0.15745924,61239.0,61233.0,0.1]
[1722646862212,0.07875194,61240.0,61234.0,0.04090028]
[1722646862213,0.15745924,61238.0,61234.0,0.04090028]
[1722646862413,0.08075194,61240.0,61234.0,0.04086695]
[1722646862414,0.30205924,61235.0,61234.0,0.04086695]
[1722646862610,0.30205924,61235.0,61233.0,0.8]
[1722646862867,0.00157439,61234.0,61233.0,0.8]
[1722646863036,0.15745924,61234.0,61233.0,0.8]
[1722646863252,0.15745924,61234.0,61233.0,0.1]
[1722646863599,0.15745924,61234.0,61224.0,0.00083]
[1722646863801,0.07875194,61232.0,61225.0,0.7]
[1722646864000,0.07875194,61232.0,61226.0,0.1]
[1722646864001,0.15745924,61231.0,61226.0,0.1]
[1722646864294,0.07875194,61232.0,61226.0,0.1]
[1722646864295,0.15745924,61228.0,61226.0,0.1]
[1722646864663,0.00157439,61227.0,61226.0,0.1]
[1722646864868,0.202,61250.0,61226.0,0.1]
[1722646864869,0.0651,61236.0,61226.0,0.19772413]
[1722646865066,0.15745924,61235.0,61231.0,0.04877207]
[1722646865427,0.15745924,61235.0,61232.0,0.09775569]
[1722646865428,0.07875194,61234.0,61232.0,0.09775569]
[1722646865624,0.1446,61233.0,61230.0,0.1]
[1722646865832,0.002,61231.0,61230.0,0.1]
[1722646866032,0.002,61231.0,61220.0,0.010131]
[1722646866033,0.002,61228.0,61220.0,0.010131]
[1722646866247,0.15745924,61227.0,61221.0,0.7]
[1722646866453,0.00157439,61226.0,61221.0,0.69583]
[1722646866826,0.00157439,61226.0,61220.0,0.010131]
[1722646866827,0.15903363,61226.0,61222.0,0.04959604]
[1722646867050,0.1446,61231.0,61220.0,0.010131]
[1722646867051,0.15745924,61225.0,61223.0,0.04959604]
[1722646867248,0.00157439,61224.0,61221.0,0.1]
[1722646867477,0.15745924,61223.0,61222.0,0.04959548]
[1722646867679,0.15745924,61223.0,61220.0,0.010131]
[1722646867893,0.07875194,61221.0,61220.0,0.010131]
[1722646868915,0.23621118,61221.0,61220.0,0.010131]
[1722646869836,0.38371118,61221.0,61220.0,0.010131]
[1722646870353,0.38571118,61221.0,61220.0,0.010131]
[1722646870617,0.38371118,61221.0,61220.0,0.010131]
[1722646870756,0.30495924,61221.0,61220.0,0.010131]
[1722646870964,0.1475,61233.0,61220.0,0.010131]
[1722646871167,0.07875194,61228.0,61220.0,0.05818018]
[1722646871394,0.15745924,61227.0,61220.0,0.010131]
[1722646871571,0.15745924,61227.0,61221.0,0.05511792]
[1722646871772,0.15745924,61227.0,61220.0,0.010131]
[1722646871967,0.00157439,61247.0,61220.0,0.010131]
[1722646871968,0.1426,61240.0,61223.0,0.1]
[1722646872176,0.1426,61240.0,61224.0,0.07779808]
[1722646872177,0.15745924,61239.0,61224.0,0.07779808]
[1722646872382,0.15745924,61239.0,61225.0,0.08814457]
[1722646872648,0.15745924,61239.0,61227.0,0.04877207]
[1722646872911,0.010131,61261.0,61227.0,0.04877207]
[1722646872912,0.0771,61254.0,61238.0,0.1]
[1722646873136,0.010131,61261.0,61238.0,0.1]
[1722646873137,0.15745924,61249.0,61241.0,0.2383]
[1722646873371,0.15745924,61249.0,61242.0,0.15479808]
[1722646873614,0.15745924,61249.0,61243.0,0.05479808]
[1722646873868,0.07875194,61248.0,61244.0,0.04466585]
[1722646874092,0.0655,61258.0,61242.0,0.1]
[1722646874093,0.15745924,61247.0,61242.0,0.1]
[1722646874326,0.0655,61258.0,61243.0,0.05873034]
[1722646874556,0.0655,61258.0,61249.0,0.2383]
[1722646874802,0.010131,61261.0,61249.0,0.2383]
[1722646874803,0.010131,61261.0,61249.0,0.46140219]
[1722646875075,0.010131,61261.0,61249.0,0.48440219]
[1722646875285,0.010131,61261.0,61249.0,0.41890219]
[1722646875499,0.010131,61261.0,61249.0,0.39590219]
[1722646875695,0.010131,61261.0,61249.0,0.45197434]
[1722646875905,0.010131,61261.0,61249.0,0.50074641]